lending/lending_fUSD_20241007
["ID","MTS","AMOUNT","RATE_DAILY","PERIOD"]
[340016540,1728334240513,-13514.0,0.00017735,2]
[340016542,1728334240523,-1149.0,0.00017735,2]
[340016544,1728334240531,-150.0,0.00017735,2]
[340016545,1728334240541,-150.0,0.00017736,2]
[340016547,1728334240551,-247.51,0.00017808,2]
[340016549,1728334240560,-350.0,0.00017808,2]
[340016551,1728334240570,-247.51,0.00017945,2]
[340016553,1728334240580,-20070.01347789,0.00018,2]
[340016554,1728334240589,-1123.24717453,0.00018,2]
[340016555,1728334240598,-5573.22495023,0.00018,2]
[340016556,1728334240607,-1022.50054558,0.00018,2]
[340016557,1728334240616,-23337.30401274,0.00018,2]
[340016558,1728334240626,-247.51,0.00018082,2]
[340016559,1728334240634,-1680.09548673,0.000181,2]
[340016560,1728334240644,-150.0,0.00018169,2]
[340016561,1728334240653,-247.51,0.00018219,2]
[340016562,1728334240662,-247.51,0.00018356,2]
[340016563,1728334240673,-247.51,0.00018493,2]
[340016564,1728334240681,-346.61726472,0.00018493,2]
[340016565,1728334240691,-150.0,0.00018601,2]
[340016567,1728334240699,-247.51,0.0001863,2]
[340016569,1728334240708,-247.51,0.00018767,2]
[340016571,1728334240717,-157.27,0.00018836,2]
[340016573,1728334240727,-155.89,0.00018836,2]
[340016574,1728334240736,-247.51,0.00018904,2]
[340016576,1728334240745,-450.0,0.00019,2]
[340016578,1728334240754,-150.0,0.00019034,2]
[340016580,1728334240763,-247.51,0.00019041,2]
[340016583,1728334240773,-11765.74,0.00019151,2]
[340016586,1728334240782,-247.51,0.00019178,2]
[340016588,1728334240791,-2500.0,0.00019178,2]
[340016589,1728334240800,-2500.0,0.00019178,2]
[340016591,1728334240809,-2500.0,0.00019178,2]
[340016593,1728334240819,-2500.0,0.00019178,2]
[340016595,1728334240828,-2500.0,0.00019178,2]
[340016597,1728334240837,-2500.0,0.00019178,2]
[340016599,1728334240845,-2500.0,0.00019178,2]
[340016601,1728334240855,-2500.0,0.00019178,2]
[340016603,1728334240864,-371.23075932,0.00019178,2]
[340016605,1728334240873,-200.0,0.00019178,2]
[340016607,1728334240882,-200.0,0.00019178,2]
[340016609,1728334240891,-200.0,0.00019178,2]
[340016611,1728334240900,-200.0,0.00019178,2]
[340016613,1728334240909,-22764.17,0.00019178,2]
[340016614,1728334240918,-9444.32465179,0.0001919,2]
[340016616,1728334240927,-227.0,0.000193,2]
[340016618,1728334240937,-247.51,0.00019315,2]
[340016620,1728334240946,-247.51,0.00019452,2]
[340016622,1728334240955,-150.0,0.00019466,2]
[340016624,1728334240964,-247.64140953,0.00019589,2]
[340016626,1728334240973,-217.64,0.00019658,2]
[340016628,1728334240983,-150.0,0.00019899,2]
[340016630,1728334240992,-14000.0,0.000199,2]
[340016632,1728334241001,-431.19,0.000199,2]
[340016634,1728334241010,-34778.526091,0.000199,2]
[340016636,1728334241020,-339.62,0.0001997,2]
[340016638,1728334241029,-294.98428273,0.0002,2]
[340016640,1728334241038,-3789.33813695,0.0002,2]
[340016642,1728334241048,-6653.0,0.0002,2]
[340016644,1728334241057,-3950.0,0.0002,2]
[340016646,1728334241067,-24749.92780617,0.0002,2]
[340016648,1728334241076,-2745.79342254,0.0002,7]
[340016650,1728334241085,-150.0,0.0002,7]
[340016652,1728334241097,-1000.0,0.0002,2]
[340016654,1728334241106,-476.04,0.00020274,2]
[340016656,1728334241115,-150.0,0.00020332,2]
[340016658,1728334241124,-272.17,0.00020548,2]
[340016660,1728334241134,-174.53,0.00020548,2]
[340016662,1728334241142,-20202.4,0.00020548,2]
[340016664,1728334241151,-811.0,0.00020735,2]
[340016666,1728334241161,-1297.0,0.00020735,2]
[340016668,1728334241170,-449.0,0.00020735,2]
[340016669,1728334241180,-626.0,0.00020735,2]
[340016671,1728334241189,-559.0,0.00020735,2]
[340016673,1728334241198,-934.0,0.00020735,2]
[340016675,1728334241207,-1906.0,0.00020735,2]
[340016677,1728334241217,-3353.0,0.00020735,2]
[340016678,1728334241226,-554.0,0.00020735,2]
[340016680,1728334241235,-547.138,0.00020735,2]
[340016682,1728334241244,-1910.0,0.00020735,2]
[340016684,1728334241253,-150.0,0.00020735,2]
[340016686,1728334241263,-5877.0,0.00020735,2]
[340016688,1728334241273,-13514.0,0.00020735,2]
[340016690,1728334241282,-1149.0,0.00020735,2]
[340016692,1728334241291,-150.0,0.00020735,2]
[340016694,1728334241301,-150.0,0.00020764,2]
[340016696,1728334241310,-14820.67363263,0.00021,2]
[340016698,1728334241320,-1131.8194323,0.00021,2]
[340016700,1728334241329,-500.0,0.00021,2]
[340016702,1728334241338,-4495.48523082,0.00021,2]
[340016704,1728334241347,-150.0,0.00021197,2]
[340016706,1728334241357,-5929.7,0.0002137,2]
[340016708,1728334241366,-150.0,0.00021629,2]
[340016710,1728334241376,-218.16,0.00021918,2]
[340016712,1728334241386,-18396.70021893,0.00022,2]
[340016714,1728334241396,-500.0,0.00022,2]
[340016716,1728334241405,-242.91584244,0.00022,2]
[340016718,1728334241415,-150.0,0.00022062,2]
[340016720,1728334241425,-227.8324465,0.0002211,2]
[340016722,1728334241435,-158.9,0.00022137,30]
[340016724,1728334241444,-339.62,0.00022234,2]
[340016726,1728334241453,-150.0,0.00022494,2]
[340016728,1728334241463,-33604.80851293,0.000225,2]
[340016730,1728334241473,-217.64,0.00022603,2]
[340016732,1728334241482,-150.0,0.00022927,2]
[340016734,1728334241492,-1029.70437703,0.00023,2]
[340016736,1728334241501,-550.0,0.00023,2]
[340016738,1728334241511,-265.00782007,0.0002301,2]
[340016740,1728334241521,-49408.33040536,0.000232,2]
[340016742,1728334241530,-562.58583454,0.0002322,2]
[340016744,1728334241542,-150.0,0.0002336,2]
[340016746,1728334241551,-431.19,0.000234,7]
[340016748,1728334241561,-808.0,0.00023735,2]
[340016750,1728334241571,-449.0,0.00023735,2]
[340016752,1728334241581,-624.0,0.00023735,2]
[340016754,1728334241590,-559.0,0.00023735,2]
[340016756,1728334241600,-934.0,0.00023735,2]
[340016758,1728334241609,-1906.0,0.00023735,2]
[340016759,1728334241619,-3353.0,0.00023735,2]
[340016761,1728334241628,-554.0,0.00023735,2]
[340016763,1728334241638,-1910.0,0.00023735,2]
[340016765,1728334241647,-150.0,0.00023735,2]
[340016767,1728334241657,-5877.0,0.00023735,2]
[340016769,1728334241667,-13514.0,0.00023735,2]
[340016771,1728334241677,-1149.0,0.00023735,2]
[340016773,1728334241687,-150.0,0.00023792,2]
[340016775,1728334241697,-967.07567657,0.00024,2]
[340016777,1728334241706,-76355.88485419,0.00024,2]
[340016779,1728334241716,-151.0,0.00024,7]
[340016781,1728334241725,-151.0,0.00024,7]
[340016783,1728334241735,-6500.0,0.00024,7]
[340016785,1728334241744,-6500.0,0.00024,7]
[340016787,1728334241754,-151.0,0.00024,7]
[340016789,1728334241763,-3064.28324212,0.0002408,2]
[340016791,1728334241773,-476.04,0.0002411,2]
[340016793,1728334241782,-399.29547468,0.0002421,2]
[340016795,1728334241792,-3500.75669042,0.0002421,2]
[340016797,1728334241801,-150.0,0.00024225,2]
[340016799,1728334241811,-1224.02917884,0.0002425,2]
[340016801,1728334241820,-335.36534805,0.0002442,2]
[340016802,1728334241830,-339.62,0.00024498,2]
[340016804,1728334241839,-150.0,0.00024657,2]
[340016806,1728334241849,-233.10503696,0.000247,2]
[340016808,1728334241858,-15184.03015942,0.000249,2]
[340016810,1728334241867,-38942.31245456,0.00025,2]
[340016812,1728334241877,-2883.23565418,0.00025,2]
[340016814,1728334241886,-327.56361953,0.00025,2]
[340016816,1728334241899,-600.0,0.00025,2]
[340016818,1728334241908,-1000.0,0.00025,2]
[340016820,1728334241918,-3205.02605989,0.000251,2]
[340016822,1728334241927,-182.94,0.000254,14]
[340016824,1728334241936,-217.64,0.00025548,2]
[340016826,1728334241945,-4284.8809781,0.00026,2]
[340016828,1728334241955,-4433.65,0.00026,2]
[340016830,1728334241965,-186.80712,0.00026,7]
[340016832,1728334241974,-515.96522438,0.0002604,2]
[340016834,1728334241984,-26007.23830781,0.000264,2]
[340016836,1728334241993,-415.353,0.00026509,13]
[340016838,1728334242002,-152.26,0.00026712,2]
[340016840,1728334242012,-157.27,0.00026712,2]
[340016841,1728334242022,-155.89,0.00026712,2]
[340016843,1728334242031,-447.0,0.00026735,2]
[340016845,1728334242041,-559.0,0.00026735,2]
[340016847,1728334242050,-934.0,0.00026735,2]
[340016849,1728334242060,-1116.933,0.00026735,2]
[340016851,1728334242069,-560.059,0.00026735,2]
[340016853,1728334242079,-545.196,0.00026735,2]
[340016855,1728334242088,-150.0,0.00026735,2]
[340016857,1728334242102,-5877.0,0.00026735,2]
[340016859,1728334242111,-13514.0,0.00026735,2]
[340016861,1728334242121,-1149.0,0.00026735,2]
[340016863,1728334242131,-193.727716,0.00026735,7]
[340016864,1728334242141,-193.727716,0.00026735,7]
[340016866,1728334242151,-231.189208,0.00026735,7]
[340016868,1728334242161,-339.62,0.00026762,2]
[340016870,1728334242172,-11103.89923578,0.00027,2]
[340016872,1728334242182,-408.26951597,0.00027,2]
[340016874,1728334242192,-480.67749219,0.00027,2]
[340016876,1728334242202,-650.0,0.00027,2]
[340016878,1728334242212,-2923.560114,0.00027,2]
[340016880,1728334242221,-174.0,0.00027,2]
[340016882,1728334242230,-151.0,0.00027123,7]
[340016884,1728334242240,-3472.66,0.00027123,2]
[340016886,1728334242249,-250.0,0.00027397,2]
[340016888,1728334242259,-174.0,0.00027444,2]
[340016890,1728334242269,-190.46198321,0.000275,2]
[340016893,1728334242279,-13341.676329,0.000275,2]
[340016894,1728334242288,-476.04,0.00027945,2]
[340016896,1728334242298,-3360.59799744,0.00028,2]
[340016898,1728334242308,-24897.74563016,0.00028,2]
[340016900,1728334242317,-497.9549126,0.00028,2]
[340016902,1728334242327,-217.64,0.00028493,2]
[340016904,1728334242337,-174.0,0.00028528,2]
[340016906,1728334242346,-162.6,0.00028963,2]
[340016908,1728334242355,-700.0,0.00029,2]
[340016909,1728334242365,-339.62,0.00029026,2]
[340016911,1728334242374,-920.0,0.00029735,2]
[340016913,1728334242383,-150.0,0.00029735,2]
[340016915,1728334242394,-5565.458,0.00029735,2]
[340016917,1728334242403,-13514.0,0.00029735,2]
[340016919,1728334242413,-462.736,0.00029735,2]
[340016921,1728334242423,-151.0,0.00029937,2]
[340016923,1728334242432,-174.0,0.00029954,2]
[340016925,1728334242442,-1083.44982138,0.0003,7]
[340016927,1728334242451,-500.0,0.00030136,2]
[340016929,1728334242461,-160.10545427,0.00030137,2]
[340016931,1728334242470,-750.0,0.00031,2]
[340016933,1728334242480,-30148.98874803,0.0003111,2]
[340016935,1728334242490,-339.62,0.0003129,2]
[340016937,1728334242500,-731.06556362,0.00031485,3]
[340016939,1728334242510,-476.04,0.00031781,2]
[340016941,1728334242520,-158.9,0.00031956,30]
[340016943,1728334242530,-250398.84658063,0.00032326,7]
[340016945,1728334242543,-151.0,0.00032485,7]
[340016947,1728334242553,-193.727716,0.00032485,7]
[340016949,1728334242563,-193.727716,0.00032485,7]
[340016950,1728334242572,-6500.0,0.00032485,7]
[340016952,1728334242582,-6500.0,0.00032485,7]
[340016954,1728334242592,-151.0,0.00032485,7]
[340016956,1728334242602,-859.0,0.00032485,30]
[340016959,1728334242612,-371.15721877,0.00032485,2]
[340016961,1728334242621,-150.0,0.00032485,2]
[340016963,1728334242631,-155.89614345,0.00032485,2]
[340016965,1728334242641,-1210.0,0.00032485,2]
[340016967,1728334242650,-341.32070514,0.00032485,2]
[340016969,1728334242659,-2945.78586628,0.00032485,2]
[340016971,1728334242669,-5476.00652465,0.00032485,7]
[340016972,1728334242679,-1489.41979542,0.00032485,2]
[340016973,1728334242689,-7228.67029342,0.00032485,2]
[340016974,1728334242699,-1008.91319204,0.00032485,2]
[340016975,1728334242708,-5080.6073827,0.00032485,2]
[340016976,1728334242717,-2678.14095967,0.00032485,2]
[340016977,1728334242727,-2405.58660994,0.00032485,2]
[340016978,1728334242737,-2624.5097529,0.00032485,2]
[340016979,1728334242746,-10035.97453674,0.00032485,2]
[340016980,1728334242755,-242.62388894,0.00032485,2]
[340016981,1728334242764,-3182.35400625,0.00032485,2]
[340016982,1728334242774,-1452.97808336,0.00032485,2]
[340016984,1728334242783,-22350.80380861,0.00032485,2]
[340016986,1728334242793,-7564.02210202,0.00032485,2]
[340016988,1728334242803,-1047.4398915,0.00032485,2]
[340016990,1728334242812,-5850.56181045,0.00032485,2]
[340016992,1728334242821,-852.69565168,0.00032485,2]
[340016993,1728334242830,-1024.61406875,0.00032485,2]
[340016995,1728334242840,-187.12003898,0.00032485,2]
[340016997,1728334242849,-9052.65480693,0.00032485,2]
[340016999,1728334242859,-1284.77774719,0.00032485,2]
[340017001,1728334242868,-4844.58947736,0.00032485,2]
[340017003,1728334242878,-290.98192835,0.00032485,2]
[340017005,1728334242887,-7555.22678441,0.00032485,2]
[340017007,1728334242896,-22309.42032672,0.00032485,2]
[340017009,1728334242906,-12579.46935143,0.00032485,2]
[340017011,1728334242915,-1883.48343541,0.00032485,2]
[340017013,1728334242928,-180.44527776,0.00032485,2]
[340017016,1728334242937,-5474.86992651,0.00032485,2]
[340017018,1728334242947,-643.0,0.00032485,2]
[340017034,1728334242958,-951.42165034,0.00032485,2]
[340017036,1728334243078,-28786.21580256,0.00032485,2]
[340017038,1728334243089,-7008.62142512,0.00032485,2]
[340017040,1728334243103,-561.96150453,0.00032485,2]
[340017042,1728334243113,-1801.60191351,0.00032485,2]
[340017045,1728334243123,-3181.66799929,0.00032485,2]
[340017047,1728334243133,-172.05491984,0.00032485,2]
[340017049,1728334243144,-550.0,0.00032485,2]
[340017051,1728334243154,-1437.81821034,0.00032485,2]
[340017053,1728334243164,-988.74296656,0.00032485,2]
[340017055,1728334243177,-936.27076992,0.00032485,2]
[340017057,1728334243187,-10499.54313282,0.00032485,2]
[340017059,1728334243196,-14659.93285915,0.00032485,2]
[340017061,1728334243207,-170.41026281,0.00032485,2]
[340017063,1728334243217,-6000.0,0.00032485,2]
[340017065,1728334243226,-1013.57282407,0.00032485,2]
[340017067,1728334243236,-4732.18773452,0.00032485,2]
[340017069,1728334243246,-552.45440379,0.00032485,2]
[340017071,1728334243256,-150.0,0.00032485,2]
[340017073,1728334243266,-18493.29420573,0.00032485,2]
[340017075,1728334243275,-1347.55373783,0.00032485,2]
[340017077,1728334243284,-614.54216972,0.00032485,2]
[340017079,1728334243294,-210.66935443,0.00032485,2]
[340017081,1728334243303,-441.00799904,0.00032485,2]
[340017083,1728334243313,-1047.0112642,0.00032485,2]
[340017085,1728334243322,-2500.0,0.00032485,2]
[340017087,1728334243332,-568.43716684,0.00032485,2]
[340017089,1728334243342,-2333.74851444,0.00032485,2]
[340017091,1728334243351,-528.80699261,0.00032485,2]
[340017094,1728334243361,-895.17801913,0.00032485,2]
[340017096,1728334243370,-1272.36549163,0.00032485,2]
[340017098,1728334243380,-472.56261283,0.00032485,2]
[340017100,1728334243390,-1555.07209967,0.00032485,2]
[340017102,1728334243399,-2000.0,0.00032485,2]
[340017104,1728334243410,-10778.80938186,0.00032485,2]
[340017106,1728334243419,-2194.10956576,0.00032485,2]
[340017108,1728334243429,-319.65431831,0.00032485,2]
[340017110,1728334243438,-537.31341028,0.00032485,2]
[340017112,1728334243447,-4909.65755766,0.00032485,2]
[340017114,1728334243457,-21044.11068391,0.00032485,2]
[340017116,1728334243467,-357.76825272,0.00032485,2]
[340017118,1728334243476,-164.47470587,0.00032485,2]
[340017120,1728334243486,-2162.30361157,0.00032485,2]
[340017122,1728334243495,-278.22668298,0.00032485,2]
[340017123,1728334243504,-764.49402155,0.00032485,2]
[340017125,1728334243514,-8239.90105516,0.00032485,2]
[340017128,1728334243524,-2294.34965016,0.00032485,2]
[340017130,1728334243533,-150.0,0.00032485,2]
[340017132,1728334243543,-14478.5350118,0.00032485,2]
[340017134,1728334243552,-1802.30614793,0.00032485,2]
[340017136,1728334243562,-3879.84575971,0.00032485,2]
[340017138,1728334243572,-11644.74208414,0.00032485,2]
[340017140,1728334243582,-1790.31811442,0.00032485,2]
[340017142,1728334243591,-216.08580463,0.00032485,2]
[340017144,1728334243600,-13785.43867849,0.00032485,2]
[340017146,1728334243609,-208.89407611,0.00032485,2]
[340017147,1728334243618,-4004.92674614,0.00032485,2]
[340017149,1728334243627,-5039.30037907,0.00032485,2]
[340017151,1728334243637,-3185.97024526,0.00032485,2]
[340017153,1728334243646,-7954.82036392,0.00032485,2]
[340017155,1728334243656,-1039.0,0.00032485,2]
[340017157,1728334243667,-1544.10409164,0.00032485,2]
[340017159,1728334243677,-970.0,0.00032485,2]
[340017161,1728334243686,-150.0,0.00032735,2]
[340017163,1728334243696,-8963.29,0.00032735,2]
[340017165,1728334243705,-453.68613941,0.00032876,2]
[340017167,1728334243714,-500.0,0.00032876,2]
[340017170,1728334243724,-500.0,0.00032876,2]
[340017172,1728334243733,-604.0411441,0.00032876,2]
[340017173,1728334243742,-422.10709949,0.00032876,2]
[340017175,1728334243751,-550.71185431,0.00032876,2]
[340017177,1728334243760,-750.0,0.00032876,2]
[340017179,1728334243770,-3000.0,0.000329,2]
[340017181,1728334243779,-1500.0,0.000329,2]
[340017183,1728334243789,-1499.999999,0.00033,2]
[340017186,1728334243799,-800.0,0.00033,2]
[340017188,1728334243808,-501.252194,0.00033,14]
[340017190,1728334243817,-423.4,0.00033042,2]
[340017192,1728334243827,-754.57,0.00033042,2]
[340017194,1728334243836,-754.03,0.00033042,2]
[340017196,1728334243845,-423.61,0.00033042,2]
[340017198,1728334243854,-754.91,0.00033042,2]
[340017200,1728334243863,-423.61,0.00033042,2]
[340017202,1728334243872,-754.91,0.00033042,2]
[340017204,1728334243882,-754.91,0.00033042,2]
[340017206,1728334243892,-423.61,0.00033042,2]
[340017208,1728334243901,-423.61,0.00033042,2]
[340017210,1728334243911,-754.91,0.00033042,2]
[340017212,1728334243920,-423.61,0.00033042,2]
[340017213,1728334243930,-754.91,0.00033042,2]
[340017215,1728334243940,-218.16,0.00033151,120]
[340017217,1728334243950,-339.62,0.00033553,2]
[340017219,1728334243960,-358.58,0.00033864,2]
[340017222,1728334243969,-428.85,0.00033864,2]
[340017223,1728334243979,-335.16,0.00033864,2]
[340017226,1728334243988,-150.0,0.00033864,2]
[340017227,1728334243998,-150.0,0.00033864,2]
[340017230,1728334244007,-150.0,0.00033864,2]
[340017232,1728334244017,-429.07,0.00033864,2]
[340017234,1728334244027,-533.9,0.00033864,2]
[340017236,1728334244036,-154.68,0.00033864,2]
[340017238,1728334244046,-150.0,0.00033864,2]
[340017240,1728334244055,-300.0,0.00033864,2]
[340017242,1728334244065,-300.76,0.00033864,2]
[340017244,1728334244074,-358.58,0.00033864,2]
[340017246,1728334244084,-429.07,0.00033864,2]
[340017248,1728334244095,-150.0,0.00033864,2]
[340017250,1728334244104,-358.75,0.00033864,2]
[340017252,1728334244113,-150.0,0.00033864,2]
[340017254,1728334244123,-150.0,0.00033864,2]
[340017256,1728334244132,-358.75,0.00033864,2]
[340017258,1728334244142,-150.0,0.00033864,2]
[340017260,1728334244151,-429.07,0.00033864,2]
[340017262,1728334244161,-358.75,0.00033864,2]
[340017264,1728334244176,-150.0,0.00033864,2]
[340017266,1728334244186,-150.0,0.00033864,2]
[340017268,1728334244196,-429.07,0.00033864,2]
[340017270,1728334244205,-429.07,0.00033864,2]
[340017272,1728334244215,-150.0,0.00033864,2]
[340017274,1728334244225,-339.5,0.00033864,2]
[340017276,1728334244235,-151.01,0.00034,2]
[340017278,1728334244244,-151.01,0.00034,2]
[340017280,1728334244253,-151.01,0.00034,2]
[340017282,1728334244262,-151.01,0.00034,2]
[340017283,1728334244271,-151.01,0.00034,2]
[340017285,1728334244280,-151.01,0.00034,2]
[340017287,1728334244290,-151.01,0.00034,2]
[340017289,1728334244299,-151.01,0.00034,2]
[340017291,1728334244309,-151.01,0.00034,2]
[340017293,1728334244318,-151.01,0.00034,2]
[340017295,1728334244327,-151.01,0.00034,2]
[340017297,1728334244337,-151.01,0.00034,2]
[340017299,1728334244346,-843.36,0.00034001,2]
[340017301,1728334244355,-1025.89,0.00034001,2]
[340017302,1728334244364,-174.0,0.00034234,2]
[340017304,1728334244373,-157.27,0.00034589,2]
[340017306,1728334244383,-155.89,0.00034589,2]
[340017308,1728334244392,-500.0,0.00034686,2]
[340017310,1728334244401,-500.0,0.00034686,2]
[340017312,1728334244410,-500.0,0.00034686,2]
[340017313,1728334244420,-500.0,0.00034686,2]
[340017316,1728334244429,-500.0,0.00034686,2]
[340017318,1728334244439,-500.0,0.00034686,2]
[340017320,1728334244448,-500.0,0.00034686,2]
[340017322,1728334244457,-500.0,0.00034686,2]
[340017324,1728334244466,-500.0,0.00034686,2]
[340017326,1728334244475,-500.0,0.00034686,2]
[340017327,1728334244484,-500.0,0.00034686,2]
[340017329,1728334244493,-500.0,0.00034686,2]
[340017331,1728334244503,-500.0,0.00034686,2]
[340017333,1728334244512,-500.0,0.00034686,2]
[340017335,1728334244522,-500.0,0.00034686,2]
[340017338,1728334244533,-500.0,0.00034686,2]
[340017340,1728334244543,-500.0,0.00034686,2]
[340017341,1728334244553,-500.0,0.00034686,2]
[340017342,1728334244563,-500.0,0.00034686,2]
[340017343,1728334244573,-500.0,0.00034686,2]
[340017344,1728334244583,-500.0,0.00034686,2]
[340017345,1728334244591,-500.0,0.00034686,2]
[340017346,1728334244601,-500.0,0.00034686,2]
[340017347,1728334244610,-500.0,0.00034686,2]
[340017348,1728334244619,-500.0,0.00034686,2]
[340017349,1728334244628,-500.0,0.00034686,2]
[340017350,1728334244638,-500.0,0.00034686,2]
[340017352,1728334244647,-500.0,0.00034686,2]
[340017353,1728334244656,-500.0,0.00034686,2]
[340017355,1728334244665,-500.0,0.00034686,2]
[340017357,1728334244675,-500.0,0.00034686,2]
[340017359,1728334244685,-500.0,0.00034686,2]
[340017362,1728334244694,-500.0,0.00034686,2]
[340017364,1728334244703,-500.0,0.00034686,2]
[340017366,1728334244713,-500.0,0.00034686,2]
[340017368,1728334244722,-500.0,0.00034686,2]
[340017370,1728334244731,-500.0,0.00034686,2]
[340017372,1728334244740,-500.0,0.00034686,2]
[340017374,1728334244749,-500.0,0.00034686,2]
[340017376,1728334244759,-500.0,0.00034686,2]
[340017378,1728334244768,-500.0,0.00034686,2]
[340017380,1728334244777,-500.0,0.00034686,2]
[340017382,1728334244786,-500.0,0.00034686,2]
[340017384,1728334244795,-500.0,0.00034686,2]
[340017386,1728334244805,-500.0,0.00034686,2]
[340017387,1728334244814,-500.0,0.00034686,2]
[340017389,1728334244823,-500.0,0.00034686,2]
[340017391,1728334244832,-500.0,0.00034686,2]
[340017393,1728334244842,-500.0,0.00034686,2]
[340017395,1728334244851,-500.0,0.00034686,2]
[340017397,1728334244861,-500.0,0.00034686,2]
[340017399,1728334244870,-500.0,0.00034686,2]
[340017401,1728334244880,-500.0,0.00034686,2]
[340017403,1728334244889,-500.0,0.00034686,2]
[340017405,1728334244899,-500.0,0.00034686,2]
[340017407,1728334244909,-500.0,0.00034686,2]
[340017409,1728334244919,-500.0,0.00034686,2]
[340017412,1728334244930,-500.0,0.00034686,2]
[340017413,1728334244939,-500.0,0.00034686,2]
[340017415,1728334244949,-500.0,0.00034686,2]
[340017418,1728334244959,-500.0,0.00034686,2]
[340017420,1728334244968,-500.0,0.00034686,2]
[340017422,1728334244978,-500.0,0.00034686,2]
[340017424,1728334244988,-500.0,0.00034686,2]
[340017426,1728334244997,-500.0,0.00034686,2]
[340017428,1728334245007,-500.0,0.00034686,2]
[340017430,1728334245017,-500.0,0.00034686,2]
[340017432,1728334245026,-500.0,0.00034686,2]
[340017434,1728334245035,-500.0,0.00034686,2]
[340017436,1728334245045,-500.0,0.00034686,2]
[340017438,1728334245054,-500.0,0.00034686,2]
[340017440,1728334245063,-500.0,0.00034686,2]
[340017442,1728334245073,-500.0,0.00034686,2]
[340017444,1728334245082,-500.0,0.00034686,2]
[340017446,1728334245092,-500.0,0.00034686,2]
[340017448,1728334245104,-500.0,0.00034686,2]
[340017450,1728334245113,-500.0,0.00034686,2]
[340017451,1728334245123,-500.0,0.00034686,2]
[340017453,1728334245133,-500.0,0.00034686,2]
[340017455,1728334245142,-500.0,0.00034686,2]
[340017457,1728334245151,-500.0,0.00034686,2]
[340017459,1728334245159,-500.0,0.00034686,2]
[340017461,1728334245169,-500.0,0.00034686,2]
[340017463,1728334245178,-500.0,0.00034686,2]
[340017465,1728334245189,-500.0,0.00034686,2]
[340017468,1728334245199,-500.0,0.00034686,2]
[340017470,1728334245208,-500.0,0.00034686,2]
[340017471,1728334245217,-500.0,0.00034686,2]
[340017473,1728334245226,-500.0,0.00034686,2]
[340017475,1728334245236,-500.0,0.00034686,2]
[340017477,1728334245245,-500.0,0.00034686,2]
[340017479,1728334245254,-500.0,0.00034686,2]
[340017481,1728334245263,-500.0,0.00034686,2]
[340017483,1728334245272,-500.0,0.00034686,2]
[340017485,1728334245282,-500.0,0.00034686,2]
[340017487,1728334245291,-500.0,0.00034686,2]
[340017489,1728334245300,-500.0,0.00034686,2]
[340017491,1728334245309,-500.0,0.00034686,2]
[340017493,1728334245318,-500.0,0.00034686,2]
[340017495,1728334245328,-500.0,0.00034686,2]
[340017497,1728334245337,-500.0,0.00034686,2]
[340017499,1728334245346,-500.0,0.00034686,2]
[340017501,1728334245356,-500.0,0.00034686,2]
[340017503,1728334245365,-500.0,0.00034686,2]
[340017505,1728334245374,-500.0,0.00034686,2]
[340017507,1728334245383,-500.0,0.00034686,2]
[340017509,1728334245393,-500.0,0.00034686,2]